fUST/lending_fUST_20240501
["ID","MTS","AMOUNT","RATE_DAILY","PERIOD"]
[324996071,1714500669493,-2914.366147,0.000351,2]
[324996072,1714500669503,-2914.366147,0.000351,2]
[324996073,1714500669512,-556.231779,0.000351,2]
[324996074,1714500669521,-556.231779,0.000351,2]
[324996075,1714500669531,-191.380256,0.000351,2]
[324996076,1714500669540,-191.380256,0.000351,2]
[324996077,1714500669549,-153.0,0.00035233,2]
[324996078,1714500669559,-153.0,0.00035233,2]
[324996079,1714500669569,-153.0,0.00035233,2]
[324996080,1714500669578,-153.0,0.00035233,2]
[324996081,1714500669587,-153.0,0.00035233,2]
[324996082,1714500669596,-306.0,0.00035233,2]
[324996083,1714500669605,-203.8071857,0.00035234,2]
[324996084,1714500669615,-153.0,0.00035234,2]
[324996085,1714500669626,-153.0,0.00035234,2]
[324996086,1714500669635,-407.6143714,0.00035234,2]
[324996087,1714500669644,-153.0,0.00035234,2]
[324996088,1714500669654,-153.0,0.00035234,2]
[324996089,1714500669663,-153.0,0.00035234,2]
[324996090,1714500669673,-153.0,0.00035234,2]
[324996091,1714500669682,-153.0,0.00035234,2]
[324996092,1714500669693,-153.0,0.00035234,2]
[324996093,1714500669703,-153.0,0.00035234,2]
[324996094,1714500669714,-153.0,0.00035234,2]
[324996095,1714500669723,-153.0,0.00035234,2]
[324996096,1714500669733,-153.0,0.00035234,2]
[324996097,1714500669743,-153.0,0.00035234,2]
[324996098,1714500669753,-153.0,0.00035234,2]
[324996099,1714500669763,-153.0,0.00035234,2]
[324996100,1714500669773,-153.0,0.00035234,2]
[324996101,1714500669784,-153.0,0.00035234,2]
[324996102,1714500669793,-153.0,0.00035234,2]
[324996103,1714500669803,-153.0,0.00035234,2]
[324996104,1714500669813,-153.0,0.00035234,2]
[324996105,1714500669823,-153.0,0.00035234,2]
[324996106,1714500669833,-153.0,0.00035234,2]
[324996107,1714500669844,-153.0,0.00035234,2]
[324996108,1714500669856,-153.0,0.00035234,2]
[324996109,1714500669866,-849.38,0.00035342,7]
[324996110,1714500669881,-500.0,0.00035342,7]
[324996111,1714500669891,-500.0,0.00035342,7]
[324996112,1714500669901,-617.16,0.00035342,7]
[324996113,1714500669911,-500.0,0.00035342,7]
[324996114,1714500669923,-500.0,0.00035342,7]
[324996115,1714500669933,-439.5911198,0.00035342,7]
[324996116,1714500669942,-990.85,0.00035342,7]
[324996117,1714500669952,-590.44,0.00035342,7]
[324996118,1714500669963,-522.55,0.00035342,7]
[324996119,1714500669972,-500.0,0.00035342,7]
[324996120,1714500669981,-500.0,0.00035342,7]
[324996121,1714500669991,-500.0,0.00035342,7]
[324996122,1714500670000,-500.0,0.00035342,7]
[324996123,1714500670010,-500.0,0.00035342,7]
[324996124,1714500670020,-500.0,0.00035342,7]
[324996125,1714500670030,-616.11,0.00035342,7]
[324996126,1714500670040,-500.0,0.00035342,7]
[324996127,1714500670049,-501.85,0.00035342,7]
[324996128,1714500670059,-500.0,0.00035342,7]
[324996129,1714500670068,-500.0,0.00035342,7]
[324996130,1714500670077,-500.0,0.00035342,7]
[324996131,1714500670087,-151.0,0.00035342,2]
[324996132,1714500670096,-615.5,0.00035342,7]
[324996133,1714500670105,-151.0,0.00035342,2]
[324996134,1714500670115,-151.0,0.00035342,2]
[324996135,1714500670127,-500.0,0.00035342,7]
[324996136,1714500670136,-500.0,0.00035342,7]
[324996137,1714500670145,-500.0,0.00035342,7]
[324996138,1714500670154,-500.0,0.00035342,7]
[324996139,1714500670164,-266.24524035,0.00035342,7]
[324996140,1714500670174,-500.0,0.00035342,7]
[324996141,1714500670183,-538.8,0.00035342,7]
[324996142,1714500670193,-2315.18,0.00035342,7]
[324996143,1714500670202,-552.53,0.00035342,7]
[324996144,1714500670212,-691.9,0.00035342,7]
[324996145,1714500670221,-725.08,0.00035342,7]
[324996146,1714500670231,-799.62,0.00035342,7]
[324996147,1714500670240,-617.12,0.00035342,7]
[324996148,1714500670250,-151.0,0.00035342,2]
[324996149,1714500670259,-590.43,0.00035342,7]
[324996150,1714500670268,-435.079339,0.00035342,2]
[324996151,1714500670277,-151.0,0.00035342,2]
[324996152,1714500670286,-551.41,0.00035342,7]
[324996153,1714500670296,-435.079339,0.00035342,2]
[324996154,1714500670305,-151.0,0.00035342,2]
[324996155,1714500670315,-224.28024396,0.00035342,7]
[324996156,1714500670324,-500.0,0.00035342,7]
[324996157,1714500670333,-551.4,0.00035342,7]
[324996158,1714500670343,-591.68595008,0.00035342,7]
[324996159,1714500670352,-480.985142,0.00035342,2]
[324996160,1714500670361,-530.4,0.00035342,7]
[324996161,1714500670372,-257.65838,0.00035342,2]
[324996162,1714500670382,-160.103392,0.00035342,2]
[324996163,1714500670391,-257.65838,0.00035342,2]
[324996164,1714500670401,-480.985142,0.00035342,2]
[324996165,1714500670410,-151.0,0.00035342,2]
[324996166,1714500670419,-151.0,0.00035342,2]
[324996167,1714500670428,-500.0,0.00035342,7]
[324996168,1714500670438,-500.0,0.00035342,7]
[324996169,1714500670447,-2125.91,0.00035342,7]
[324996170,1714500670457,-500.0,0.00035342,7]
[324996171,1714500670467,-500.0,0.00035342,7]
[324996172,1714500670476,-500.0,0.00035342,7]
[324996173,1714500670486,-151.0,0.00035342,2]
[324996174,1714500670496,-321.00541389,0.00035342,7]
[324996175,1714500670506,-630.46,0.00035342,7]
[324996176,1714500670515,-500.0,0.00035342,7]
[324996177,1714500670525,-583.45,0.00035342,7]
[324996178,1714500670535,-1170.62,0.00035342,7]
[324996179,1714500670544,-1122.24,0.00035342,7]
[324996180,1714500670553,-151.0,0.00035342,2]
[324996181,1714500670563,-500.0,0.00035342,7]
[324996182,1714500670572,-500.0,0.00035342,7]
[324996183,1714500670581,-379.2,0.00035511,14]
[324996184,1714500670591,-849.38,0.00035616,7]
[324996185,1714500670600,-500.0,0.00035616,7]
[324996186,1714500670609,-500.0,0.00035616,7]
[324996187,1714500670620,-617.16,0.00035616,7]
[324996188,1714500670630,-500.0,0.00035616,15]
[324996189,1714500670639,-500.0,0.00035616,7]
[324996190,1714500670649,-212.75213298,0.00035616,7]
[324996191,1714500670659,-990.85,0.00035616,7]
[324996192,1714500670668,-590.44,0.00035616,7]
[324996193,1714500670678,-522.55,0.00035616,7]
[324996194,1714500670688,-500.0,0.00035616,30]
[324996195,1714500670698,-500.0,0.00035616,30]
[324996196,1714500670707,-500.0,0.00035616,30]
[324996197,1714500670717,-500.0,0.00035616,30]
[324996198,1714500670727,-500.0,0.00035616,30]
[324996199,1714500670736,-606.29695031,0.00035616,30]
[324996200,1714500670745,-500.0,0.00035616,7]
[324996201,1714500670755,-500.0,0.00035616,7]
[324996202,1714500670764,-500.0,0.00035616,7]
[324996203,1714500670774,-500.0,0.00035616,7]
[324996204,1714500670783,-500.0,0.00035616,7]
[324996205,1714500670793,-577.61230456,0.00035616,7]
[324996206,1714500670802,-616.11,0.00035616,7]
[324996207,1714500670811,-500.0,0.00035616,7]
[324996208,1714500670820,-501.85,0.00035616,7]
[324996209,1714500670829,-500.0,0.00035616,7]
[324996210,1714500670843,-500.0,0.00035616,7]
[324996211,1714500670852,-500.0,0.00035616,7]
[324996212,1714500670861,-151.0,0.00035616,2]
[324996213,1714500670874,-151.0,0.00035616,2]
[324996214,1714500670884,-615.5,0.00035616,7]
[324996215,1714500670894,-500.0,0.00035616,7]
[324996216,1714500670904,-500.0,0.00035616,7]
[324996217,1714500670913,-500.0,0.00035616,7]
[324996218,1714500670924,-500.0,0.00035616,7]
[324996219,1714500670934,-500.0,0.00035616,7]
[324996220,1714500670944,-538.8,0.00035616,7]
[324996221,1714500670953,-2315.18,0.00035616,7]
[324996222,1714500670963,-552.53,0.00035616,7]
[324996223,1714500670972,-691.9,0.00035616,7]
[324996224,1714500670982,-725.08,0.00035616,7]
[324996225,1714500670991,-799.62,0.00035616,7]
[324996226,1714500671001,-617.12,0.00035616,7]
[324996227,1714500671010,-590.43,0.00035616,7]
[324996228,1714500671019,-551.41,0.00035616,7]
[324996229,1714500671029,-500.0,0.00035616,7]
[324996230,1714500671038,-551.4,0.00035616,7]
[324996231,1714500671047,-530.4,0.00035616,7]
[324996232,1714500671056,-500.0,0.00035616,7]
[324996233,1714500671065,-500.0,0.00035616,7]
[324996234,1714500671075,-2125.91,0.00035616,7]
[324996235,1714500671084,-500.0,0.00035616,7]
[324996236,1714500671093,-500.0,0.00035616,7]
[324996237,1714500671102,-500.0,0.00035616,7]
[324996238,1714500671111,-630.46,0.00035616,7]
[324996239,1714500671121,-500.0,0.00035616,7]
[324996240,1714500671131,-583.45,0.00035616,7]
[324996241,1714500671140,-1170.62,0.00035616,7]
[324996242,1714500671149,-1122.24,0.00035616,7]
[324996243,1714500671158,-500.0,0.00035616,7]
[324996244,1714500671167,-623.46878896,0.00035616,7]
[324996245,1714500671176,-1332.287859,0.00035616,120]
[324996246,1714500671185,-1006.0,0.0003564,5]
[324996247,1714500671195,-1006.0,0.0003564,5]
[324996248,1714500671205,-200.0,0.00035699,120]
[324996249,1714500671216,-252.62250464,0.00035737,2]
[324996250,1714500671226,-211.31898376,0.0003589,2]
[324996251,1714500671236,-849.38,0.0003589,7]
[324996252,1714500671246,-427.87364979,0.0003589,7]
[324996253,1714500671256,-500.0,0.0003589,7]
[324996254,1714500671265,-617.16,0.0003589,7]
[324996255,1714500671275,-398.88062268,0.0003589,7]
[324996256,1714500671283,-990.85,0.0003589,7]
[324996257,1714500671293,-590.44,0.0003589,7]
[324996258,1714500671303,-522.55,0.0003589,7]
[324996259,1714500671313,-500.0,0.0003589,7]
[324996260,1714500671322,-518.30696446,0.0003589,7]
[324996261,1714500671332,-500.0,0.0003589,7]
[324996262,1714500671342,-201.16735457,0.0003589,7]
[324996263,1714500671352,-253.43210651,0.0003589,7]
[324996264,1714500671361,-616.11,0.0003589,7]
[324996265,1714500671371,-500.0,0.0003589,7]
[324996266,1714500671380,-501.85,0.0003589,7]
[324996267,1714500671389,-500.0,0.0003589,7]
[324996268,1714500671400,-399.27698038,0.0003589,7]
[324996269,1714500671410,-500.0,0.0003589,7]
[324996270,1714500671419,-615.5,0.0003589,7]
[324996271,1714500671429,-500.0,0.0003589,7]
[324996272,1714500671439,-500.0,0.0003589,7]
[324996273,1714500671448,-500.0,0.0003589,7]
[324996274,1714500671457,-500.0,0.0003589,7]
[324996275,1714500671467,-500.0,0.0003589,7]
[324996276,1714500671477,-538.8,0.0003589,7]
[324996277,1714500671486,-2315.18,0.0003589,7]
[324996278,1714500671496,-552.53,0.0003589,7]
[324996279,1714500671506,-691.9,0.0003589,7]
[324996280,1714500671516,-725.08,0.0003589,7]
[324996281,1714500671525,-799.62,0.0003589,7]
[324996282,1714500671535,-617.12,0.0003589,7]
[324996283,1714500671544,-590.43,0.0003589,7]
[324996284,1714500671553,-551.41,0.0003589,7]
[324996285,1714500671562,-500.0,0.0003589,7]
[324996286,1714500671572,-551.4,0.0003589,7]
[324996287,1714500671581,-530.4,0.0003589,7]
[324996288,1714500671590,-259.92979722,0.0003589,7]
[324996289,1714500671600,-500.0,0.0003589,7]
[324996290,1714500671609,-2125.91,0.0003589,7]
[324996291,1714500671620,-500.0,0.0003589,7]
[324996292,1714500671630,-500.0,0.0003589,7]
[324996293,1714500671639,-441.66878893,0.0003589,7]
[324996294,1714500671649,-630.46,0.0003589,7]
[324996295,1714500671658,-500.0,0.0003589,7]
[324996296,1714500671668,-583.45,0.0003589,7]
[324996297,1714500671677,-1170.62,0.0003589,7]
[324996298,1714500671687,-1122.24,0.0003589,7]
[324996299,1714500671807,-500.0,0.0003589,7]
[324996300,1714500671816,-200.0,0.00036102,120]
[324996301,1714500671826,-849.38,0.00036164,7]
[324996302,1714500671836,-500.0,0.00036164,7]
[324996303,1714500671846,-617.16,0.00036164,7]
[324996304,1714500671857,-990.85,0.00036164,7]
[324996305,1714500671866,-590.44,0.00036164,7]
[324996306,1714500671878,-522.55,0.00036164,7]
[324996307,1714500671888,-419.38739274,0.00036164,7]
[324996308,1714500671897,-500.0,0.00036164,7]
[324996309,1714500671907,-616.11,0.00036164,7]
[324996310,1714500671917,-500.0,0.00036164,7]
[324996311,1714500671929,-501.85,0.00036164,7]
[324996312,1714500671939,-500.0,0.00036164,7]
[324996313,1714500671948,-500.0,0.00036164,7]
[324996314,1714500671958,-615.5,0.00036164,7]
[324996315,1714500671967,-500.0,0.00036164,7]
[324996316,1714500671976,-387.12851808,0.00036164,7]
[324996317,1714500671986,-500.0,0.00036164,7]
[324996318,1714500671995,-500.0,0.00036164,7]
[324996319,1714500672004,-500.0,0.00036164,7]
[324996320,1714500672013,-538.8,0.00036164,7]
[324996321,1714500672023,-2315.18,0.00036164,7]
[324996322,1714500672032,-552.53,0.00036164,7]
[324996323,1714500672041,-691.9,0.00036164,7]
[324996324,1714500672051,-725.08,0.00036164,7]
[324996325,1714500672060,-799.62,0.00036164,7]
[324996326,1714500672069,-617.12,0.00036164,7]
[324996327,1714500672079,-590.43,0.00036164,7]
[324996328,1714500672088,-551.41,0.00036164,7]
[324996329,1714500672097,-500.0,0.00036164,7]
[324996330,1714500672106,-551.4,0.00036164,7]
[324996331,1714500672116,-530.4,0.00036164,7]
[324996332,1714500672126,-500.0,0.00036164,7]
[324996333,1714500672135,-2125.91,0.00036164,7]
[324996334,1714500672145,-500.0,0.00036164,7]
[324996335,1714500672154,-500.0,0.00036164,7]
[324996336,1714500672163,-630.46,0.00036164,7]
[324996337,1714500672172,-500.0,0.00036164,7]
[324996338,1714500672182,-583.45,0.00036164,7]
[324996339,1714500672191,-1170.62,0.00036164,7]
[324996340,1714500672201,-1122.24,0.00036164,7]
[324996341,1714500672212,-500.0,0.00036164,7]
[324996342,1714500672221,-379.0,0.00036247,2]
[324996343,1714500672232,-150.0,0.000363,26]
[324996344,1714500672242,-1004.97453702,0.000364,7]
[324996345,1714500672252,-150.0,0.00036437,2]
[324996346,1714500672261,-849.38,0.00036438,7]
[324996347,1714500672272,-500.0,0.00036438,7]
[324996348,1714500672282,-617.16,0.00036438,7]
[324996349,1714500672291,-990.85,0.00036438,7]
[324996350,1714500672301,-590.44,0.00036438,7]
[324996351,1714500672311,-522.55,0.00036438,7]
[324996352,1714500672320,-530.85354817,0.00036438,7]
[324996353,1714500672330,-616.11,0.00036438,7]
[324996354,1714500672340,-500.0,0.00036438,7]
[324996355,1714500672350,-501.85,0.00036438,7]
[324996356,1714500672359,-500.0,0.00036438,7]
[324996357,1714500672368,-564.87051891,0.00036438,7]
[324996358,1714500672378,-615.5,0.00036438,7]
[324996359,1714500672387,-500.0,0.00036438,7]
[324996360,1714500672397,-644.60288508,0.00036438,7]
[324996361,1714500672406,-554.0943715,0.00036438,7]
[324996362,1714500672416,-500.0,0.00036438,7]
[324996363,1714500672427,-538.8,0.00036438,7]
[324996364,1714500672436,-151.0,0.00036438,2]
[324996365,1714500672446,-933.322597,0.00036438,2]
[324996366,1714500672456,-233.64155,0.00036438,2]
[324996367,1714500672466,-933.322597,0.00036438,2]
[324996368,1714500672475,-233.64155,0.00036438,2]
[324996369,1714500672485,-2315.18,0.00036438,7]
[324996370,1714500672494,-151.0,0.00036438,2]
[324996371,1714500672503,-151.0,0.00036438,2]
[324996372,1714500672513,-151.0,0.00036438,2]
[324996373,1714500672523,-151.0,0.00036438,2]
[324996374,1714500672532,-552.53,0.00036438,7]
[324996375,1714500672541,-691.9,0.00036438,7]
[324996376,1714500672551,-725.08,0.00036438,7]
[324996377,1714500672560,-799.62,0.00036438,7]
[324996378,1714500672570,-617.12,0.00036438,7]
[324996379,1714500672580,-154.749495,0.00036438,2]
[324996380,1714500672590,-590.43,0.00036438,7]
[324996381,1714500672600,-154.749495,0.00036438,2]
[324996382,1714500672609,-551.41,0.00036438,7]
[324996383,1714500672621,-151.0,0.00036438,2]
[324996384,1714500672630,-500.0,0.00036438,7]
[324996385,1714500672640,-551.4,0.00036438,7]
[324996386,1714500672650,-530.4,0.00036438,7]
[324996387,1714500672659,-500.0,0.00036438,7]
[324996388,1714500672668,-2125.91,0.00036438,7]
[324996389,1714500672678,-500.0,0.00036438,7]
[324996390,1714500672687,-500.0,0.00036438,7]
[324996391,1714500672697,-630.46,0.00036438,7]
[324996392,1714500672706,-500.0,0.00036438,7]
[324996393,1714500672716,-583.45,0.00036438,7]
[324996394,1714500672725,-1170.62,0.00036438,7]
[324996395,1714500672735,-1122.24,0.00036438,7]
[324996396,1714500672744,-500.0,0.00036438,7]
[324996397,1714500672753,-379.2,0.00036483,14]
[324996398,1714500672762,-849.38,0.00036712,7]
[324996399,1714500672771,-500.0,0.00036712,7]
[324996400,1714500672781,-617.16,0.00036712,7]
[324996401,1714500672791,-990.85,0.00036712,7]
[324996402,1714500672801,-590.44,0.00036712,7]
[324996403,1714500672811,-151.0,0.00036712,2]
[324996404,1714500672820,-151.0,0.00036712,2]
[324996405,1714500672829,-522.55,0.00036712,7]
[324996406,1714500672843,-616.11,0.00036712,7]
[324996407,1714500672854,-500.0,0.00036712,7]
[324996408,1714500672863,-501.85,0.00036712,7]
[324996409,1714500672874,-500.0,0.00036712,7]
[324996410,1714500672885,-615.5,0.00036712,7]
[324996411,1714500672894,-500.0,0.00036712,7]
[324996412,1714500672903,-500.0,0.00036712,7]
[324996413,1714500672913,-538.8,0.00036712,7]
[324996414,1714500672922,-2315.18,0.00036712,7]
[324996415,1714500672933,-552.53,0.00036712,7]
[324996416,1714500672943,-691.9,0.00036712,7]
[324996417,1714500672953,-725.08,0.00036712,7]
[324996418,1714500672962,-799.62,0.00036712,7]
[324996419,1714500672973,-617.12,0.00036712,7]
[324996420,1714500672982,-590.43,0.00036712,7]
[324996421,1714500672992,-551.41,0.00036712,7]
[324996422,1714500673002,-500.0,0.00036712,7]
[324996423,1714500673011,-551.4,0.00036712,7]
[324996424,1714500673021,-530.4,0.00036712,7]
[324996425,1714500673030,-181.45813179,0.00036712,7]
[324996426,1714500673040,-2125.91,0.00036712,7]
[324996427,1714500673049,-500.0,0.00036712,7]
[324996428,1714500673059,-500.0,0.00036712,7]
[324996429,1714500673068,-630.46,0.00036712,7]
[324996430,1714500673078,-500.0,0.00036712,7]
[324996431,1714500673088,-583.45,0.00036712,7]
[324996432,1714500673098,-1170.62,0.00036712,7]
[324996433,1714500673107,-1122.24,0.00036712,7]
[324996434,1714500673117,-302.36887226,0.00036712,7]
[324996435,1714500673127,-849.38,0.00036986,7]
[324996436,1714500673136,-500.0,0.00036986,7]
[324996437,1714500673145,-617.16,0.00036986,7]
[324996438,1714500673154,-990.85,0.00036986,7]
[324996439,1714500673164,-590.44,0.00036986,7]
[324996440,1714500673173,-522.55,0.00036986,7]
[324996441,1714500673182,-616.11,0.00036986,7]
[324996442,1714500673192,-500.0,0.00036986,7]
[324996443,1714500673201,-501.85,0.00036986,7]
[324996444,1714500673210,-500.0,0.00036986,7]
[324996445,1714500673219,-615.5,0.00036986,7]
[324996446,1714500673229,-500.0,0.00036986,7]
[324996447,1714500673239,-151.0,0.00036986,2]
[324996448,1714500673248,-174.777871,0.00036986,2]
[324996449,1714500673258,-315.05813894,0.00036986,7]
[324996450,1714500673267,-538.8,0.00036986,7]
[324996451,1714500673276,-2315.18,0.00036986,7]
[324996452,1714500673286,-552.53,0.00036986,7]
[324996453,1714500673295,-691.9,0.00036986,7]
[324996454,1714500673305,-725.08,0.00036986,7]
[324996455,1714500673314,-799.62,0.00036986,7]
[324996456,1714500673323,-617.12,0.00036986,7]
[324996457,1714500673332,-590.43,0.00036986,7]
[324996458,1714500673342,-551.41,0.00036986,7]
[324996459,1714500673351,-500.0,0.00036986,7]
[324996460,1714500673360,-551.4,0.00036986,7]
[324996461,1714500673370,-530.4,0.00036986,7]
[324996462,1714500673379,-2125.91,0.00036986,7]
[324996463,1714500673388,-500.0,0.00036986,7]
[324996464,1714500673398,-500.0,0.00036986,7]
[324996465,1714500673407,-630.46,0.00036986,7]
[324996466,1714500673416,-328.84798627,0.00036986,7]
[324996467,1714500673425,-583.45,0.00036986,7]
[324996468,1714500673435,-1170.62,0.00036986,7]
[324996469,1714500673444,-1122.24,0.00036986,7]
[324996470,1714500673453,-2927.07021767,0.00037,2]
[324996471,1714500673462,-307.0344857,0.00037041,2]
[324996472,1714500673475,-849.38,0.0003726,7]
[324996473,1714500673485,-500.0,0.0003726,7]
[324996474,1714500673495,-617.16,0.0003726,7]
[324996475,1714500673504,-990.85,0.0003726,7]
[324996476,1714500673514,-590.44,0.0003726,7]
[324996477,1714500673523,-522.55,0.0003726,7]
[324996478,1714500673532,-616.11,0.0003726,7]
[324996479,1714500673542,-500.0,0.0003726,7]
[324996480,1714500673551,-501.85,0.0003726,7]
[324996481,1714500673560,-500.0,0.0003726,7]
[324996482,1714500673570,-615.5,0.0003726,7]
[324996483,1714500673579,-500.0,0.0003726,7]
[324996484,1714500673589,-538.8,0.0003726,7]
[324996485,1714500673598,-2315.18,0.0003726,7]
[324996486,1714500673608,-552.53,0.0003726,7]
[324996487,1714500673623,-691.9,0.0003726,7]
[324996488,1714500673633,-725.08,0.0003726,7]
[324996489,1714500673642,-799.62,0.0003726,7]
[324996490,1714500673652,-617.12,0.0003726,7]
[324996491,1714500673662,-590.43,0.0003726,7]
[324996492,1714500673673,-551.41,0.0003726,7]
[324996493,1714500673683,-551.4,0.0003726,7]
[324996494,1714500673693,-500.0,0.0003726,7]
[324996495,1714500673703,-530.4,0.0003726,7]
[324996496,1714500673712,-2125.91,0.0003726,7]
[324996497,1714500673722,-621.56056883,0.0003726,7]
[324996498,1714500673732,-500.0,0.0003726,7]
[324996499,1714500673742,-630.46,0.0003726,7]
[324996500,1714500673753,-583.45,0.0003726,7]
[324996501,1714500673763,-1170.62,0.0003726,7]
[324996502,1714500673774,-1122.24,0.0003726,7]
[324996503,1714500673784,-9012.68282379,0.000374,120]
[324996504,1714500673794,-153.21482082,0.00037407,7]
[324996505,1714500673804,-153.21482082,0.00037412,7]
[324996506,1714500673814,-150.0,0.00037437,2]
[324996507,1714500673824,-154.64623115,0.00037438,7]
[324996508,1714500673834,-446.83455771,0.00037441,7]
[324996509,1714500673843,-379.2,0.00037455,14]
[324996510,1714500673858,-153.21482082,0.00037467,7]
[324996511,1714500673870,-153.89720645,0.00037478,7]
[324996512,1714500673880,-3542.326258,0.000375,32]
[324996513,1714500673890,-151.293733,0.000375,2]
[324996514,1714500673900,-151.0,0.000375,2]
[324996515,1714500673909,-409.716788,0.000375,2]
[324996516,1714500673919,-151.0,0.000375,2]
[324996517,1714500673930,-409.716788,0.000375,2]
[324996518,1714500673941,-2914.366147,0.000375,2]
[324996519,1714500673951,-2914.366147,0.000375,2]
[324996520,1714500673961,-556.231779,0.000375,2]
[324996521,1714500673972,-556.231779,0.000375,2]
[324996522,1714500673983,-191.380256,0.000375,2]
[324996523,1714500673992,-191.380256,0.000375,2]
[324996524,1714500674002,-1006.0,0.00037516,5]
[324996525,1714500674011,-1006.0,0.00037516,5]
[324996526,1714500674021,-153.21482082,0.00037528,7]
[324996527,1714500674031,-849.38,0.00037534,7]
[324996528,1714500674040,-500.0,0.00037534,7]
[324996529,1714500674050,-617.16,0.00037534,7]
[324996530,1714500674059,-990.85,0.00037534,7]
[324996531,1714500674069,-590.44,0.00037534,7]
[324996532,1714500674079,-522.55,0.00037534,7]
[324996533,1714500674088,-616.11,0.00037534,7]
[324996534,1714500674098,-304.64132683,0.00037534,7]
[324996535,1714500674108,-501.85,0.00037534,7]
[324996536,1714500674117,-500.0,0.00037534,7]
[324996537,1714500674130,-615.5,0.00037534,7]
[324996538,1714500674140,-500.0,0.00037534,7]
[324996539,1714500674149,-160.654897,0.00037534,2]
[324996540,1714500674159,-160.654897,0.00037534,2]
[324996541,1714500674168,-151.0,0.00037534,2]
[324996542,1714500674177,-3914.259318,0.00037534,2]
[324996543,1714500674187,-3914.259318,0.00037534,2]
[324996544,1714500674197,-1607.581169,0.00037534,2]
[324996545,1714500674206,-1607.581169,0.00037534,2]
[324996546,1714500674215,-589.477482,0.00037534,2]
[324996547,1714500674225,-538.8,0.00037534,7]
[324996548,1714500674234,-589.477482,0.00037534,2]
[324996549,1714500674244,-2315.18,0.00037534,7]
[324996550,1714500674254,-552.53,0.00037534,7]
[324996551,1714500674263,-691.9,0.00037534,7]
[324996552,1714500674272,-725.08,0.00037534,7]
[324996553,1714500674282,-799.62,0.00037534,7]
[324996554,1714500674291,-617.12,0.00037534,7]
[324996555,1714500674301,-590.43,0.00037534,7]
[324996556,1714500674311,-551.41,0.00037534,7]
[324996557,1714500674321,-551.4,0.00037534,7]
[324996558,1714500674331,-393.22665271,0.00037534,7]
[324996559,1714500674341,-530.4,0.00037534,7]
[324996560,1714500674351,-2125.91,0.00037534,7]
[324996561,1714500674361,-500.0,0.00037534,7]
[324996562,1714500674372,-151.0,0.00037534,2]
[324996563,1714500674383,-630.46,0.00037534,7]
[324996564,1714500674393,-583.45,0.00037534,7]
[324996565,1714500674403,-1170.62,0.00037534,7]
[324996566,1714500674412,-1122.24,0.00037534,7]
[324996567,1714500674423,-151.0,0.00037534,2]
[324996568,1714500674434,-153.21482082,0.00037569,7]
[324996569,1714500674443,-154.64623115,0.00037597,7]
[324996570,1714500674454,-446.83455771,0.000376,7]